bitfinex/quotes_BTCUSD_20220306
["timestamp","ask_amount","ask_price","bid_price","bid_amount"]
[1646608370075,1.2878,38681.0,38674.0,0.21306735]
[1646608370256,1.2878,38681.0,38671.0,0.00700928]
[1646608370257,0.19529548,38675.0,38671.0,0.00700928]
[1646608370464,0.19529548,38675.0,38667.0,0.08490909]
[1646608370465,0.20236476,38668.0,38667.0,0.08490909]
[1646608370663,0.71137323,38668.0,38666.0,0.003]
[1646608370856,0.92767953,38667.0,38666.0,0.01403644]
[1646608371054,1.32416168,38667.0,38666.0,0.01403644]
[1646608371257,0.83224215,38667.0,38666.0,0.01403644]
[1646608371453,1.03957583,38667.0,38666.0,0.01403644]
[1646608371656,0.63008989,38667.0,38666.0,0.01403644]
[1646608371855,0.43735875,38667.0,38666.0,0.01403644]
[1646608372105,0.65729875,38667.0,38666.0,0.01403644]
[1646608372407,0.75729875,38667.0,38666.0,0.01403644]
[1646608372604,0.69472886,38667.0,38666.0,0.01403644]
[1646608372805,0.69472886,38667.0,38666.0,0.001]
[1646608373206,0.5,38666.0,38662.0,0.001]
[1646608373410,0.5,38666.0,38661.0,0.09190909]
[1646608373411,0.6463,38664.0,38661.0,0.09190909]
[1646608373606,0.13576,38662.0,38661.0,0.05190909]
[1646608373809,1.56866366,38662.0,38661.0,0.04190909]
[1646608374008,2.48851155,38662.0,38661.0,0.04190909]
[1646608374305,2.58572772,38662.0,38661.0,0.04190909]
[1646608374513,0.7878,38660.0,38659.0,0.00361417]
[1646608374710,0.62947029,38657.0,38640.0,0.03577547]
[1646608374913,0.62947029,38657.0,38635.0,0.26279746]
[1646608374914,0.6463,38641.0,38630.0,0.09090909]
[1646608375118,0.0272097,38632.0,38630.0,0.09090909]
[1646608375309,0.0517,38631.0,38630.0,0.09090909]
[1646608375512,1.08419052,38631.0,38630.0,0.06590909]
[1646608375707,1.08419052,38631.0,38630.0,0.0822253]
[1646608375708,0.30287628,38631.0,38630.0,0.0822253]
[1646608375958,0.30287628,38631.0,38630.0,0.2622253]
[1646608375959,0.23609262,38631.0,38630.0,0.2622253]
[1646608376358,0.03609262,38631.0,38628.0,0.19923449]
[1646608376554,0.03609262,38631.0,38628.0,0.19085381]
[1646608376756,0.03609262,38631.0,38629.0,0.22034098]
[1646608376954,0.03609262,38631.0,38629.0,0.21534098]
[1646608377155,0.03609262,38631.0,38629.0,0.0071088]
[1646608377359,0.15136205,38630.0,38629.0,0.0071088]
[1646608377557,0.76916205,38630.0,38629.0,0.0071088]
[1646608377757,1.65696205,38630.0,38629.0,0.0071088]
[1646608377956,1.79272205,38630.0,38629.0,0.0071088]
[1646608378259,1.79272205,38630.0,38625.0,0.00036683]
[1646608378260,0.79319382,38628.0,38625.0,0.00036683]
[1646608378560,0.92356,38626.0,38623.0,0.02749735]
[1646608378757,0.9185567,38624.0,38623.0,0.02749735]
[1646608378960,1.57182166,38624.0,38623.0,0.02749735]
[1646608379157,1.91629588,38624.0,38623.0,0.02749735]
[1646608379356,0.68902496,38624.0,38623.0,0.02749735]
[1646608379601,1.47682496,38624.0,38623.0,0.02749735]
[1646608379900,0.55326496,38624.0,38623.0,0.02749735]
[1646608380105,0.064792,38627.0,38626.0,0.06671012]
[1646608380305,0.36,38630.0,38626.0,0.06671012]
[1646608380306,0.366,38630.0,38627.0,0.01445097]
[1646608380506,0.266,38630.0,38629.0,0.15]
[1646608380701,0.266,38630.0,38629.0,0.35]
[1646608380912,0.266,38630.0,38629.0,0.87632422]
[1646608381103,0.006,38630.0,38629.0,0.87632422]
[1646608381303,0.0272097,38632.0,38629.0,0.87632422]
[1646608381510,0.0272097,38632.0,38629.0,0.38249781]
[1646608382506,0.0272097,38632.0,38631.0,0.02584]
[1646608382912,0.1,38636.0,38632.0,0.59184196]
[1646608383111,0.18315341,38655.0,38632.0,0.59184196]
[1646608383112,0.1,38654.0,38644.0,0.07052013]
[1646608383359,0.1,38654.0,38639.0,0.02584]
[1646608383360,0.1,38649.0,38639.0,0.02584]
[1646608383556,0.1,38645.0,38640.0,0.18813997]
[1646608383756,0.1,38645.0,38640.0,0.05]
[1646608383957,0.1,38641.0,38640.0,0.05]
[1646608384162,0.2,38641.0,38639.0,0.308894]
[1646608384357,0.2,38641.0,38639.0,0.334734]
[1646608384556,0.1,38641.0,38639.0,0.334734]
[1646608385058,0.1,38641.0,38639.0,0.308894]
[1646608385456,0.1,38641.0,38640.0,0.5]
[1646608385656,0.3,38644.0,38641.0,0.194222]
[1646608385857,0.1,38645.0,38641.0,0.194222]
[1646608386059,0.1,38645.0,38642.0,0.045]
[1646608386258,0.1,38645.0,38642.0,0.10974]
[1646608386460,0.3,38644.0,38642.0,0.06474]
[1646608386667,0.3,38644.0,38640.0,0.5]
[1646608386668,0.18911,38644.0,38643.0,0.01777044]
[1646608386863,0.14081,38644.0,38643.0,0.01777044]
[1646608387102,0.23581,38644.0,38643.0,0.01777044]
[1646608387309,0.64866,38644.0,38640.0,0.5]
[1646608387509,0.00525928,38641.0,38640.0,0.51417479]
[1646608387703,0.26955,38641.0,38640.0,0.51417479]
[1646608387905,1.45735,38641.0,38640.0,0.51417479]
[1646608388104,1.54577,38641.0,38640.0,0.51417479]
[1646608388304,1.54577,38641.0,38640.0,0.16196789]
[1646608388305,1.68793744,38641.0,38640.0,0.16196789]
[1646608388505,1.68793744,38641.0,38640.0,0.17748298]
[1646608388706,1.48793744,38641.0,38640.0,0.17748298]
[1646608388905,1.58793744,38641.0,38640.0,0.17748298]
[1646608389107,2.37573744,38641.0,38640.0,0.17748298]
[1646608389311,2.73573744,38641.0,38640.0,0.17748298]
[1646608389707,0.19305787,38635.0,38633.0,0.00356031]
[1646608389906,0.26530107,38634.0,38633.0,0.00356031]
[1646608390108,0.35,38633.0,38629.0,0.064773]
[1646608390307,0.42954107,38634.0,38630.0,0.01750765]
[1646608390509,0.22954107,38634.0,38630.0,0.01750765]
[1646608390710,0.01294,38639.0,38631.0,0.129519]
[1646608390711,0.1,38632.0,38631.0,0.129519]
[1646608390956,0.2,38632.0,38631.0,0.129519]
[1646608391154,0.1,38632.0,38631.0,0.129519]
[1646608391359,0.1,38632.0,38630.0,0.19201865]
[1646608391554,0.1,38632.0,38630.0,0.06250765]
[1646608391754,0.1,38631.0,38630.0,0.01250765]
[1646608391959,0.1,38631.0,38627.0,0.308979]
[1646608391960,0.2,38631.0,38627.0,0.308979]
[1646608392156,0.19952039,38629.0,38627.0,0.258979]
[1646608392358,0.5341084,38629.0,38628.0,0.01554615]
[1646608392556,0.6,38628.0,38622.0,0.004318]
[1646608392756,0.3,38627.0,38622.0,0.004318]
[1646608392956,0.19210635,38626.0,38623.0,0.01601721]
[1646608393157,0.19013635,38626.0,38623.0,0.01601721]
[1646608393360,0.02502,38625.0,38624.0,0.064778]
[1646608393557,0.02502,38625.0,38624.0,0.23889612]
[1646608394356,0.02502,38625.0,38624.0,0.58132069]
[1646608395403,0.02502,38625.0,38623.0,0.0809394]
[1646608395606,0.12502,38625.0,38623.0,0.0161654]
[1646608395802,0.22502,38625.0,38623.0,0.0161654]
[1646608396006,0.22954824,38629.0,38624.0,0.064778]
[1646608396210,0.03322,38629.0,38627.0,0.145]
[1646608396507,0.005,38629.0,38628.0,0.30076968]
[1646608396705,0.005,38629.0,38628.0,0.06945599]
[1646608397707,0.26440885,38631.0,38628.0,0.01275599]
[1646608397906,0.26,38629.0,38628.0,0.01275599]
[1646608398207,0.43801578,38629.0,38628.0,0.01275599]
[1646608398458,0.26,38629.0,38628.0,0.01275599]
[1646608399456,0.25,38629.0,38628.0,0.18327741]
[1646608399664,0.25,38629.0,38628.0,0.4443323]
[1646608400264,19.00018719,38634.0,38630.0,0.02584]
[1646608400563,19.00018719,38634.0,38633.0,0.02584]
[1646608400957,19.00018719,38634.0,38633.0,0.0415381]
[1646608401158,19.0,38634.0,38633.0,0.0415381]
[1646608401358,18.0009,38634.0,38633.0,0.0415381]
[1646608401660,18.0009,38634.0,38633.0,0.0156981]
[1646608403006,18.0009,38634.0,38633.0,0.01379074]
[1646608405310,18.0009,38634.0,38633.0,0.18463074]
[1646608405707,18.0009,38634.0,38633.0,0.03963074]
[1646608405954,18.0009,38634.0,38633.0,0.01379074]
[1646608406457,17.43771346,38634.0,38633.0,0.01379074]
[1646608406854,17.64874346,38634.0,38633.0,0.01379074]
[1646608407053,17.74874346,38634.0,38632.0,0.00075184]
[1646608407257,0.44076,38633.0,38632.0,0.00075184]
[1646608407463,0.55,38632.0,38622.0,0.004318]
[1646608407659,0.005,38626.0,38622.0,0.004318]
[1646608407854,0.005,38626.0,38614.0,0.001]
[1646608407855,0.18309394,38625.0,38620.0,0.09122709]
[1646608408054,0.1,38623.0,38620.0,0.09122709]
[1646608408256,0.2,38623.0,38620.0,0.09122709]
[1646608408453,0.3,38624.0,38620.0,0.09122709]
[1646608408454,0.1,38621.0,38620.0,0.09122709]
[1646608408656,0.23076,38621.0,38620.0,0.09122709]
[1646608408858,0.064778,38622.0,38620.0,0.09122709]
[1646608409255,0.364778,38622.0,38620.0,0.09122709]
[1646608409455,0.064778,38622.0,38620.0,0.09122709]
[1646608409711,0.1,38621.0,38620.0,0.09122709]
[1646608410519,0.1,38621.0,38620.0,0.10459024]
[1646608410714,0.55,38620.0,38616.0,0.09090909]
[1646608410913,0.9017,38620.0,38616.0,0.09090909]
[1646608411113,0.005,38617.0,38616.0,0.10830926]
[1646608411311,0.31871743,38617.0,38614.0,0.001]
[1646608411620,0.31871743,38617.0,38606.0,0.09090909]
[1646608411621,0.55,38614.0,38610.0,0.01390629]
[1646608411817,0.14076,38611.0,38602.0,0.09090909]
[1646608412014,0.005,38605.0,38602.0,0.08190909]
[1646608412214,0.74461335,38604.0,38600.0,0.0017]
[1646608412415,0.5517,38603.0,38589.0,0.09664451]
[1646608412617,0.48790809,38602.0,38589.0,0.09664451]
[1646608412817,0.02088,38591.0,38589.0,0.09664451]
[1646608413013,0.02088,38591.0,38589.0,0.09364451]
[1646608413014,0.37269532,38590.0,38589.0,0.09364451]
[1646608413216,0.83619032,38590.0,38585.0,0.08390909]
[1646608413461,0.0968,38589.0,38585.0,0.08390909]
[1646608413661,0.0968,38589.0,38582.0,0.09290909]
[1646608413662,0.1,38586.0,38582.0,0.09290909]
[1646608413861,0.2,38586.0,38582.0,0.09290909]
[1646608414060,0.1,38585.0,38582.0,0.09290909]
[1646608414261,0.1,38583.0,38581.0,0.003]
[1646608414460,0.16998,38583.0,38581.0,0.003]
[1646608414663,0.53433,38582.0,38581.0,0.003]
[1646608414861,0.2,38582.0,38581.0,0.003]
[1646608415267,0.15,38600.0,38581.0,0.003]
[1646608415268,0.19750317,38591.0,38582.0,0.73117612]
[1646608415559,0.19750317,38591.0,38582.0,0.194467]
[1646608415560,0.004,38591.0,38582.0,0.194467]
[1646608415763,0.004,38591.0,38585.0,0.00017806]
[1646608415961,0.32984,38591.0,38581.0,0.001]
[1646608416163,0.27615075,38585.0,38579.0,0.09347078]
[1646608416363,0.2,38582.0,38579.0,0.09347078]
[1646608416561,0.2697,38582.0,38579.0,0.09347078]
[1646608416762,0.2697,38582.0,38579.0,0.09008715]
[1646608416763,0.1354,38582.0,38579.0,0.09008715]
[1646608416966,0.31294,38586.0,38581.0,0.18501327]
[1646608416967,0.01294,38586.0,38581.0,0.18501327]
[1646608417210,0.16764,38593.0,38580.0,0.01055055]
[1646608417414,0.1,38590.0,38580.0,0.01055055]
[1646608417610,0.7878,38589.0,38580.0,0.01055055]
[1646608417915,0.7878,38589.0,38579.0,0.0506377]
[1646608417916,0.1,38581.0,38579.0,0.0506377]
[1646608418111,0.30118145,38588.0,38580.0,0.0107915]
[1646608418112,0.1,38584.0,38580.0,0.0107915]
[1646608418311,0.1,38588.0,38582.0,0.20900439]
[1646608418513,0.1517,38588.0,38582.0,0.20900439]
[1646608418712,0.1,38587.0,38582.0,0.05]
[1646608418911,0.24699823,38584.0,38579.0,0.0506377]
[1646608419111,0.164844,38583.0,38579.0,0.0506377]
[1646608419310,0.064844,38583.0,38580.0,0.01465796]
[1646608419515,0.13433,38581.0,38580.0,0.01465796]
[1646608419711,0.1,38580.0,38579.0,0.0506377]
[1646608419912,0.2,38581.0,38580.0,0.01528499]
[1646608420211,0.1,38581.0,38580.0,0.01528499]
[1646608420610,0.2,38581.0,38580.0,0.01028499]
[1646608421081,0.24,38581.0,38580.0,0.01028499]
[1646608421878,0.24,38581.0,38580.0,0.01143884]
[1646608422079,0.14,38581.0,38580.0,0.01143884]
[1646608422380,0.24,38581.0,38580.0,0.01143884]
[1646608422578,0.23802362,38581.0,38580.0,0.01143884]
[1646608422984,0.53802362,38581.0,38579.0,0.05079531]
[1646608423188,0.01676996,38578.0,38568.0,0.08790909]
[1646608423388,0.15,38570.0,38561.0,0.08790909]
[1646608423584,0.15,38570.0,38561.0,0.07090909]
[1646608423585,0.04368,38567.0,38561.0,0.07090909]
[1646608423784,0.1,38562.0,38551.0,0.09090909]
[1646608423984,0.49374322,38561.0,38551.0,0.09090909]
[1646608424185,0.55,38558.0,38554.0,0.01002711]
[1646608424389,0.55,38558.0,38534.0,0.08150242]
[1646608424390,0.058857,38554.0,38534.0,0.08150242]
[1646608424619,0.058857,38554.0,38527.0,0.15582809]
[1646608424620,0.13954,38535.0,38527.0,0.07326728]
[1646608424823,0.5968,38533.0,38527.0,0.07326728]
[1646608425022,0.5968,38533.0,38524.0,0.09997709]
[1646608425023,0.82631,38532.0,38524.0,0.09090909]
[1646608425224,0.82087,38532.0,38524.0,0.09090909]
[1646608425417,1.12087,38532.0,38528.0,0.00014243]
[1646608425625,0.36372457,38531.0,38522.0,0.00213672]
[1646608425817,1.1370732,38525.0,38522.0,0.00213672]
[1646608426021,0.0130369,38528.0,38523.0,0.00300198]
[1646608426022,1.1360732,38528.0,38523.0,0.00300198]
[1646608426218,0.164946,38533.0,38526.0,0.00546]
[1646608426219,0.852746,38533.0,38526.0,0.00546]
[1646608426419,0.229891,38534.0,38528.0,0.07033062]
[1646608426613,0.229891,38534.0,38511.0,0.01213274]
[1646608426614,0.0999,38530.0,38529.0,0.49108094]
[1646608426818,0.004,38532.0,38529.0,0.49108094]
[1646608427016,0.004,38532.0,38530.0,0.01563318]
[1646608427217,0.004,38532.0,38514.0,0.129847]
[1646608427414,0.104,38532.0,38517.0,0.0132638]
[1646608427819,0.3,38531.0,38528.0,0.19157902]
[1646608428014,0.1,38532.0,38528.0,0.17899754]
[1646608428224,0.1,38536.0,38528.0,0.17899754]
[1646608428225,0.1,38536.0,38529.0,0.6]
[1646608428464,0.001,38535.0,38530.0,0.01081792]
[1646608428660,0.001,38535.0,38530.0,0.03425975]
[1646608428859,0.001,38535.0,38530.0,0.01081792]
[1646608429061,0.001,38535.0,38531.0,0.0477]
[1646608429062,0.0001359,38534.0,38531.0,0.0477]
[1646608429258,0.3,38546.0,38532.0,0.6]
[1646608429462,0.1,38547.0,38533.0,0.52344183]
[1646608429658,0.01297,38553.0,38533.0,0.3]
[1646608429659,0.26,38535.0,38533.0,0.3]
[1646608429856,0.1,38553.0,38532.0,0.714893]
[1646608429857,0.1,38553.0,38547.0,0.19376487]
[1646608430059,0.1,38552.0,38547.0,0.20928068]
[1646608430257,0.1,38550.0,38547.0,0.25928068]
[1646608430659,0.1,38548.0,38547.0,0.25928068]
[1646608430862,0.1,38548.0,38547.0,0.25428068]
[1646608430863,0.085,38548.0,38547.0,0.25428068]
[1646608431162,0.085,38550.0,38547.0,0.06051581]
[1646608431363,0.085,38550.0,38532.0,0.4798]
[1646608431364,0.05951055,38544.0,38532.0,0.4798]
[1646608431563,0.05951055,38544.0,38525.0,0.3]
[1646608431761,0.01297,38543.0,38521.0,0.3]
[1646608431958,0.1,38535.0,38527.0,0.2]
[1646608432210,0.1,38543.0,38531.0,0.07237679]
[1646608432404,0.1,38543.0,38532.0,0.3]
[1646608432605,0.05951055,38544.0,38532.0,0.3]
[1646608432804,0.00013594,38536.0,38531.0,0.07237679]
[1646608433005,0.00013594,38536.0,38532.0,0.3174051]
[1646608433208,0.00013594,38536.0,38535.0,0.05]
[1646608433413,0.00013594,38536.0,38532.0,0.0174051]
[1646608433606,0.1,38539.0,38532.0,0.0174051]
[1646608434006,0.05468718,38544.0,38533.0,0.02584]
[1646608434208,0.05468718,38544.0,38533.0,0.05]
[1646608434209,0.15468718,38544.0,38533.0,0.05]
[1646608434608,0.15468718,38544.0,38534.0,0.17299721]
[1646608435008,0.05468718,38544.0,38535.0,0.02584]
[1646608435707,0.15468718,38544.0,38535.0,0.02584]
[1646608436359,0.15468718,38544.0,38535.0,0.01387358]
[1646608436560,0.15468718,38544.0,38537.0,0.02584]
[1646608436561,0.05468718,38544.0,38537.0,0.02584]
[1646608436763,0.05468718,38544.0,38538.0,0.01483732]
[1646608436964,0.05468718,38544.0,38539.0,0.02584]
[1646608437161,0.05468718,38544.0,38541.0,0.08339549]
[1646608437364,0.05468718,38544.0,38543.0,0.02584]
[1646608437562,0.05468718,38544.0,38543.0,0.37354]
[1646608438063,0.1,38555.0,38544.0,0.62584]
[1646608438268,0.195,38560.0,38554.0,0.02584]
[1646608438469,0.1,38560.0,38556.0,0.02584]
[1646608438662,0.01295,38568.0,38557.0,0.0477]
[1646608439061,0.18095154,38564.0,38560.0,0.15932301]
[1646608439264,0.01295,38565.0,38561.0,0.0477]
[1646608439464,0.01295,38565.0,38562.0,0.01396732]
[1646608439718,0.01295,38567.0,38563.0,0.0477]
[1646608439923,0.11295,38567.0,38563.0,0.0477]
[1646608440123,0.1,38567.0,38563.0,0.0477]
[1646608440318,0.36,38568.0,38563.0,0.0477]
[1646608440516,0.36,38568.0,38563.0,0.0447]
[1646608440716,0.26,38568.0,38563.0,0.0447]
[1646608440920,0.18367204,38566.0,38563.0,0.0447]
[1646608441123,0.47845528,38566.0,38563.0,0.0447]
[1646608441520,0.00905882,38562.0,38560.0,0.002]
[1646608441724,0.15,38561.0,38542.0,0.3]
[1646608441919,0.15,38558.0,38549.0,0.17248716]
[1646608442119,0.1,38555.0,38550.0,0.05468108]
[1646608442319,0.1,38554.0,38550.0,0.02884108]
[1646608443556,0.10017626,38554.0,38550.0,0.02884108]
[1646608444557,0.1,38554.0,38550.0,0.02884108]
[1646608444759,0.10017626,38554.0,38550.0,0.07884108]
[1646608444956,0.10017626,38554.0,38550.0,0.02884108]
[1646608445158,0.10017626,38554.0,38551.0,0.05]
[1646608445358,0.10017626,38554.0,38551.0,0.045]
[1646608445656,3.248e-05,38554.0,38551.0,0.045]
[1646608445857,0.002,38557.0,38551.0,0.045]
[1646608446060,0.00017626,38554.0,38551.0,0.045]
[1646608446858,0.1,38558.0,38551.0,0.045]
[1646608447103,0.00017626,38554.0,38551.0,0.045]
[1646608448004,0.09517626,38558.0,38551.0,0.045]
[1646608448407,0.00017626,38554.0,38551.0,0.045]
[1646608448810,0.03763598,38554.0,38553.0,9.083e-05]
[1646608449206,0.07497173,38554.0,38551.0,0.04009083]
[1646608449404,0.07479547,38554.0,38551.0,0.04009083]
[1646608449604,0.11254963,38554.0,38550.0,0.02884108]
[1646608449805,0.11254963,38554.0,38551.0,0.01365711]
[1646608450008,0.35254963,38554.0,38551.0,0.01365711]
[1646608450209,0.39022347,38554.0,38551.0,0.01365711]
[1646608451055,0.39022347,38554.0,38551.0,0.07852811]
[1646608451359,0.39022347,38554.0,38551.0,0.12852811]
[1646608451668,0.39022347,38554.0,38550.0,0.02884108]
[1646608451669,0.15,38552.0,38550.0,0.02884108]
[1646608451859,0.3,38551.0,38550.0,0.00809332]
[1646608452058,0.3,38551.0,38544.0,0.01503711]
[1646608452059,0.3477,38551.0,38538.0,0.01588719]
[1646608452259,0.3477,38551.0,38539.0,0.01412059]
[1646608452260,0.1,38544.0,38539.0,0.01412059]
[1646608452455,0.22584,38551.0,38550.0,0.14861183]
[1646608452656,0.83560286,38551.0,38550.0,0.14861183]
[1646608452854,0.76107186,38551.0,38550.0,0.14861183]
[1646608453053,0.86107186,38551.0,38550.0,0.14861183]
[1646608454459,0.38427362,38551.0,38550.0,0.19861183]
[1646608454710,0.1,38553.0,38552.0,0.00104997]
[1646608454910,0.15022347,38554.0,38552.0,0.00104997]
[1646608455115,0.1,38555.0,38552.0,0.60104997]
[1646608455313,0.003,38556.0,38553.0,0.51502783]
[1646608455513,0.1,38563.0,38553.0,0.69475916]
[1646608455819,0.15017245,38556.0,38555.0,0.01627009]
[1646608456014,0.15017245,38556.0,38553.0,0.05]
[1646608456213,0.15,38555.0,38552.0,0.26390417]
[1646608457016,0.1,38559.0,38553.0,0.6]
[1646608457216,0.1,38559.0,38552.0,0.33837259]
[1646608457413,0.15,38560.0,38552.0,0.32878091]
[1646608457613,0.103,38561.0,38552.0,0.32878091]
[1646608457814,0.15,38557.0,38552.0,0.26390417]
[1646608458014,0.26547484,38555.0,38552.0,0.01644732]
[1646608458656,0.1,38559.0,38552.0,0.01644732]
[1646608459061,0.15,38553.0,38552.0,0.00104997]
[1646608459263,0.25,38553.0,38552.0,0.00104997]
[1646608460056,0.48758603,38553.0,38552.0,0.00104997]
[1646608460458,0.48758603,38553.0,38550.0,0.14963776]
[1646608460857,0.25,38551.0,38550.0,0.14963776]
[1646608461058,0.55,38551.0,38550.0,0.14963776]
[1646608461259,0.45,38551.0,38533.0,0.50304]
[1646608461459,0.45,38551.0,38550.0,0.05]
[1646608461460,0.3,38551.0,38550.0,0.05]
[1646608461662,0.3,38551.0,38531.0,0.0100289]
[1646608461663,0.67354,38551.0,38531.0,0.0100289]
[1646608461863,0.02219,38544.0,38532.0,0.01516504]
[1646608462116,0.15,38537.0,38532.0,0.01516504]
[1646608462311,0.41345887,38537.0,38532.0,0.01516504]
[1646608462509,0.41345887,38537.0,38525.0,0.12984349]
[1646608462510,0.41345887,38537.0,38533.0,0.01423917]
[1646608462709,0.41345887,38537.0,38534.0,0.01523749]
[1646608463110,0.15,38537.0,38534.0,0.01523749]
[1646608463310,0.064924,38538.0,38534.0,0.01523749]
[1646608463511,0.15,38538.0,38534.0,0.01023749]
[1646608463713,0.1,38540.0,38534.0,0.01023749]
[1646608463913,0.15,38540.0,38535.0,0.064906]
[1646608464112,0.0477,38544.0,38535.0,0.064906]
[1646608464113,0.1,38544.0,38536.0,0.01015627]
[1646608464311,0.15,38541.0,38536.0,0.07505751]
[1646608464517,0.15,38541.0,38537.0,0.05]
[1646608464709,0.15,38541.0,38539.0,0.01043831]
[1646608465112,0.15,38541.0,38539.0,0.1402379]
[1646608465315,0.05003249,38541.0,38540.0,0.01316993]
[1646608465512,0.05003249,38542.0,38540.0,0.01316993]
[1646608465958,0.05003249,38542.0,38540.0,0.00316993]
[1646608466662,0.0001343,38544.0,38539.0,0.1902379]
[1646608466860,0.1,38542.0,38539.0,0.1902379]
[1646608467063,0.1001343,38544.0,38539.0,0.20394752]
[1646608467260,0.1,38544.0,38540.0,0.06489884]
[1646608467464,0.0001343,38544.0,38540.0,0.03989884]
[1646608468062,0.1001343,38544.0,38540.0,0.03989884]
[1646608468464,0.1,38544.0,38540.0,0.03989884]
[1646608468667,0.0001343,38544.0,38540.0,0.03989884]
[1646608468864,0.1001343,38544.0,38540.0,0.04007381]
[1646608469807,0.16392964,38541.0,38540.0,0.04007381]
[1646608470008,0.164908,38543.0,38540.0,0.00017497]
[1646608470409,0.1,38541.0,38540.0,0.00017497]
[1646608472110,3.25e-05,38541.0,38540.0,0.00017497]
[1646608472309,0.01297,38542.0,38540.0,0.00017497]
[1646608472508,0.34016999,38544.0,38540.0,0.00017497]
[1646608472509,0.01297,38543.0,38540.0,0.00017497]
[1646608472708,0.1,38541.0,38540.0,0.00017497]
[1646608473008,0.01297,38543.0,38540.0,0.00017497]
[1646608473662,0.01297,38543.0,38541.0,0.064895]
[1646608473861,0.01297,38543.0,38542.0,0.01758359]
[1646608474263,0.24016999,38544.0,38543.0,0.48703]
[1646608474459,0.24,38544.0,38543.0,0.38439159]
[1646608474861,0.24,38544.0,38543.0,0.39597234]
[1646608475858,0.03773436,38553.0,38544.0,0.26]
[1646608476060,0.00013448,38545.0,38544.0,0.26]
[1646608476659,0.23790133,38555.0,38546.0,0.12977524]
[1646608476859,0.01297,38556.0,38552.0,0.5]
[1646608477123,0.01297,38556.0,38553.0,0.01637113]
[1646608477331,0.1,38558.0,38553.0,0.01637113]
[1646608477332,0.077855,38558.0,38553.0,0.01637113]
[1646608477723,0.00905882,38562.0,38554.0,0.12973878]
[1646608477923,0.00905882,38562.0,38558.0,0.5]
[1646608478122,0.00905882,38562.0,38559.0,0.0921475]
[1646608478626,0.07393482,38562.0,38559.0,0.0921475]
[1646608478824,0.19381689,38561.0,38559.0,0.0921475]
[1646608479027,0.1,38563.0,38562.0,0.42606518]
[1646608479725,0.2,38563.0,38562.0,0.18734631]
[1646608480126,0.22584,38563.0,38562.0,0.18734631]
[1646608480327,0.44,38563.0,38562.0,0.18734631]
[1646608481163,0.24,38563.0,38562.0,0.18734631]
[1646608481763,0.06488,38564.0,38562.0,0.2522207]
[1646608481963,0.00017033,38564.0,38562.0,0.2522207]
[1646608482962,0.1,38565.0,38562.0,0.2522207]
[1646608483169,0.1,38565.0,38563.0,0.064871]
[1646608483367,0.1,38565.0,38564.0,0.51753507]
[1646608483368,0.00017033,38565.0,38564.0,0.51753507]
[1646608483570,0.50017033,38565.0,38564.0,0.81753507]
[1646608483768,0.11106155,38565.0,38564.0,0.81753507]
[1646608483966,0.33867077,38575.0,38564.0,0.51753507]
[1646608484264,0.1,38575.0,38570.0,0.17769768]
[1646608484468,0.075,38576.0,38575.0,0.01560758]
[1646608484910,0.58809309,38579.0,38575.0,0.01560758]
[1646608485116,0.1,38578.0,38575.0,0.01560758]
[1646608485310,0.001,38579.0,38575.0,0.01560758]
[1646608485612,0.0011342,38579.0,38577.0,0.56485071]
[1646608486010,0.0001342,38579.0,38577.0,0.56485071]
[1646608486413,0.5049398,38582.0,38577.0,0.56485071]
[1646608486619,0.5049398,38582.0,38579.0,0.05743929]
[1646608486620,0.103,38582.0,38579.0,0.05743929]
[1646608486820,0.003,38582.0,38580.0,0.5]
[1646608487215,0.03702557,38587.0,38580.0,1.1]
[1646608487418,0.35576345,38591.0,38587.0,0.19392239]
[1646608487419,0.16933329,38591.0,38587.0,0.19392239]
[1646608487621,0.16933329,38591.0,38588.0,0.0153826]
[1646608487814,0.62157115,38596.0,38590.0,0.5]
[1646608487815,0.16933329,38593.0,38590.0,0.5]
[1646608488014,0.47427309,38595.0,38590.0,0.5]
[1646608488214,0.3049398,38594.0,38590.0,0.5]
[1646608488463,0.0937032,38595.0,38590.0,0.5]
[1646608488964,0.1,38597.0,38591.0,0.06482268]
[1646608489166,0.1,38595.0,38591.0,0.06482268]
[1646608489365,0.003,38598.0,38591.0,0.06482268]
[1646608489767,0.03727585,38593.0,38591.0,0.06482268]
[1646608489965,0.03727585,38593.0,38592.0,0.70376324]
[1646608490172,0.03727585,38593.0,38592.0,0.5]
[1646608490768,0.03227585,38593.0,38592.0,0.5]
[1646608491369,0.003,38594.0,38593.0,0.46772415]
[1646608491771,0.0031709,38594.0,38593.0,0.46772415]
[1646608491968,0.0981709,38598.0,38593.0,0.46772415]
[1646608492216,0.0981709,38598.0,38593.0,0.59735074]
[1646608492416,0.0981709,38598.0,38595.0,0.5]
[1646608492617,0.13427362,38596.0,38595.0,0.26787754]
[1646608493620,0.43427362,38596.0,38595.0,0.26787754]
[1646608493820,0.02584,38595.0,38592.0,0.002]
[1646608494016,0.17584,38593.0,38592.0,0.002]
[1646608494216,0.67584,38593.0,38592.0,0.002]
[1646608494418,0.71824321,38593.0,38592.0,0.0017162]
[1646608494621,1.06736483,38593.0,38591.0,0.01070047]
[1646608494820,0.30360691,38592.0,38591.0,0.01070047]
[1646608495023,0.26933329,38592.0,38591.0,0.01070047]
[1646608495225,0.1,38592.0,38591.0,0.01070047]
[1646608495526,0.16933329,38593.0,38592.0,0.20177129]
[1646608495527,0.1,38593.0,38592.0,0.20177129]
[1646608495726,0.003,38595.0,38592.0,0.25177129]
[1646608495974,0.00017165,38596.0,38592.0,0.44622069]
[1646608496174,0.1,38600.0,38592.0,0.44089569]
[1646608496475,0.00016615,38596.0,38592.0,0.44089569]
[1646608496774,0.00016615,38596.0,38593.0,0.36342172]
[1646608497172,0.00016615,38596.0,38592.0,0.31523011]
[1646608497373,0.004,38600.0,38592.0,0.31523011]
[1646608497773,0.004,38600.0,38595.0,0.19615295]
[1646608497774,0.00016616,38596.0,38595.0,0.19615295]